Cogmind - Beta 15 @@@ ROGUE MODE // 2025.05.28 @ 19:48:26 Player: Figgis Result: Self-destructed Performance ------------- Evolutions (1) 500 Regions Visited (3) 600 Robots Destroyed (16) 80 Value Destroyed (588) 588 Prototype IDs (0) 0 Alien Tech Used (0) 0 Bonus (0) 0 TOTAL SCORE: 1768 Bonus ------- None Cogmind --------- Core Integrity 354/400 Matter 300/300 Energy 96/100 System Corruption 0% Temperature Cool (9) Movement Walking (120) Location -9/Materials Parts ------- > --- POWER (1) -------- (None) > --- PROPULSION (3) --- Aluminum Leg Aluminum Leg Aluminum Leg > --- UTILITY (3) ------ Medium Storage Unit Targeting Computer Propulsion Shielding > --- WEAPON (2) ------- (None) > --- INVENTORY (10) --- Ion Engine Ion Engine Light Nuclear Core Aluminum Leg Heat Sink Peak State ------------ > --- POWER ------------ Light Ion Engine > --- PROPULSION ------- Aluminum Leg Aluminum Leg Aluminum Leg > --- UTILITY ---------- Medium Storage Unit Targeting Computer Propulsion Shielding > --- WEAPON ----------- Small Laser Small Laser > --- INVENTORY -------- Ion Engine Light Ion Engine Light Nuclear Core Aluminum Leg [Rating: 9] Favorites ----------- Power Light Ion Engine Engine Light Ion Engine Propulsion Aluminum Leg Leg Aluminum Leg Utility Targeting Computer Storage Small Storage Unit Processor Targeting Computer Protection Propulsion Shielding Weapon Assault Rifle Energy Gun Small Laser Ballistic Gun Assault Rifle Build | -11 -10 -10 -9 ------- Run | Yrd Mat Min Mat Slots Evolved 2 | . . . 2 Power . | . . . . Propulsion 1 | . . . 1 Utility 1 | . . . 1 Weapon . | . . . . Parts Attached 18 | 3 8 2 5 Power 2 | 1 . . 1 Engine 2 | 1 . . 1 Core . | . . . . Reactor . | . . . . Propulsion 8 | 2 3 1 2 Treads . | . . . . Leg 8 | 2 3 1 2 Wheel . | . . . . Hover . | . . . . Flight . | . . . . Utility 4 | . 2 1 1 Device . | . . . . Storage 2 | . 1 1 . Processor 1 | . 1 . . Hackware . | . . . . Protection 1 | . . . 1 Artifact . | . . . . Weapon 4 | . 3 . 1 Energy Gun 2 | . 1 . 1 Energy Cannon . | . . . . Ballistic Gun 2 | . 2 . . Ballistic Cannon . | . . . . Launcher . | . . . . Special Weapon . | . . . . Impact Weapon . | . . . . Slashing Weapon . | . . . . Piercing Weapon . | . . . . Special Melee Weapon . | . . . . Unidentified Prototypes . | . . . . Parts Lost 8 | . 3 2 3 Power 1 | . . . 1 Propulsion 3 | . 2 1 . Utility . | . . . . Weapon 4 | . 1 1 2 Highest Loss Streak 3 | . 2 2 3 To Critical Strikes . | . . . . Average Backups 4 | 3 4 7 4 Power 2 | . 1 3 3 Propulsion 1 | . 1 3 1 Utility . | . . 1 . Weapon . | 2 . . . Tool/Special . | . . . . Unused Backups 5 | . . . 5 Power 3 | . . . 3 Propulsion 1 | . . . 1 Utility 1 | . . . 1 Weapon . | . . . . Tool/Special . | . . . . Average Slot Usage (%) 90 | . 91 86 90 Engine 12 | . 14 14 10 Leg 28 | . 25 26 33 Storage 12 | . 13 14 11 Processor 11 | . 10 14 11 Protection 3 | . . . 10 Energy Gun 8 | . 3 14 15 Ballistic Gun 12 | . 22 2 . Peak Build Rating 9 | 3 7 7 9 Average Rating 6 | 1 6 6 8 On Entrance 4 | . 3 7 6 Naked Turns . | . . . . Heaviest Build 16 | 3 12 14 16 Greatest Support 30 | 3 20 20 30 Greatest Overweight (x) 1 | . 1 . . Average Overweight (x) . | . . . . Largest Inventory Capacity 10 | 5 8 10 10 Average Capacity 8 | 5 7 9 10 Most Carried 8 | 5 8 8 6 Average Carried 4 | 3 4 7 4 Final Capacity 10 | 5 8 10 10 Final Carried 7 | 5 7 7 5 Class Distribution -------------------- 84% | Mutant 15% | Scavenger-Mutant Dominant Class ---------------- Mutant | -10/Materials Mutant | -10/Mines Scavenger-Mutant | -9/Materials Resources | -11 -10 -10 -9 ----------- Run | Yrd Mat Min Mat Matter Collected 534 | 208 264 22 40 Remotely . | . . . . Salvage Created 698 | . 378 99 221 Parts 30 | . 20 1 9 Haulers Intercepted . | . . . . Recyclers Shooed . | . . . . Parts Field Recycled . | . . . . Retrieved Matter . | . . . . Parts Self-Destructed . | . . . . Prevented . | . . . . Kills | -11 -10 -10 -9 ------- Run | Yrd Mat Min Mat Combat Hostiles Destroyed 15 | . 8 2 5 Guns 15 | . 8 2 5 Classes Destroyed 2 | . 2 . . Watcher 1 | . 1 . . Grunt 15 | . 8 2 5 Best Kill Streak 3 | . 3 2 3 Combat Bots Only 3 | . 3 2 3 Max Kills in Single Turn 1 | . 1 1 1 Gunslinging . | . . . . Exploded . | . . . . Melee . | . . . . Uniques/NPCs Destroyed . | . . . . Combat | -11 -10 -10 -9 -------- Run | Yrd Mat Min Mat Hostile Shots Fired 116 | . 60 16 40 Missed 30 | . 16 3 11 Hits 86 | . 44 13 29 Projectile 86 | . 44 13 29 Critical Strikes 1 | . 1 . . Damage Taken 1190 | . 653 160 377 Core 205 | . 131 28 46 Absorbed by Shields . | . . . . Redirected to Shielding 42 | . . . 42 Core Remaining (%) 68 | 100 . 36 . Volleys Fired 61 | . 34 10 17 Largest 2 | . 2 2 2 Hottest 80 | . 60 60 80 Shots Fired 108 | . 67 14 27 Gun 108 | . 67 14 27 Cannon . | . . . . Launcher . | . . . . Special . | . . . . Kinetic 63 | . 59 4 . Thermal 45 | . 8 10 27 Explosive . | . . . . Electromagnetic . | . . . . Robot Hit Streak 17 | . 12 10 17 Robot Miss Streak 3 | . 3 2 2 Penetration Max . | . . . . Secondary Targets 1 | . 1 . . Max Gunslinging Chain 1 | . 1 . . Shots Hit Robots 84 | . 50 12 22 Core Hits 36 | . 20 5 11 Critical Kills . | . . . . Critical Parts Destroyed . | . . . . Critical Strikes . | . . . . Melee Attacks . | . . . . Impact . | . . . . Slashing . | . . . . Piercing . | . . . . Sneak Attacks . | . . . . Combat Hostiles . | . . . . Follow-up Attacks . | . . . . Damage Inflicted 1036 | . 625 145 266 Guns 1036 | . 625 145 266 Cannons . | . . . . Explosions . | . . . . Melee . | . . . . Ramming . | . . . . Kinetic 588 | . 551 37 . Thermal 448 | . 74 108 266 Explosive . | . . . . Electromagnetic . | . . . . Impact . | . . . . Slashing . | . . . . Piercing . | . . . . Highest Corruption . | . . . . Average Corruption . | . . . . Corruption Purged . | . . . . Corruption Blocked . | . . . . Overload Shots . | . . . . Overflow Damage . | . . . . Projectiles . | . . . . Explosions . | . . . . Melee . | . . . . Knockbacks . | . . . . Impact . | . . . . Kinetic . | . . . . Secondary . | . . . . Self-Inflicted Damage . | . . . . Shots . | . . . . Rammed . | . . . . Targets Rammed . | . . . . Kicked . | . . . . Crushed . | . . . . Highest Temperature 138 | . 30 90 138 Average Temperature 36 | . 10 53 52 Received Heat Transfer 603 | . 342 90 171 Siege Activations . | . . . . Martial Activations . | . . . . Shielding Activations . | . . . . Robots Disrupted . | . . . . Combat Hostiles . | . . . . Robots Corrupted . | . . . . Combat Hostiles . | . . . . Parts Fried . | . . . . Impact Corruptions . | . . . . Robots Melted . | . . . . Combat Hostiles . | . . . . Parts Melted 1 | . . . 1 Heat Transferred 925 | . 150 225 550 Parts Sabotaged . | . . . . Parts Stolen . | . . . . Parts Stripped . | . . . . Power Chain Reactions . | . . . . Alert | -11 -10 -10 -9 ------- Run | Yrd Mat Min Mat Maximum Alert Level . | . . . . Low Security (%) 100 | 100 100 100 100 Level 1 . | . . . . Level 2 . | . . . . Level 3 . | . . . . Level 4 . | . . . . Level 5 . | . . . . High Security . | . . . . Max Security . | . . . . Peak Influence 89 | . 89 55 75 Initial 25 | . . 25 1 Average 34 | . 46 27 20 Influence Increases 435 | . 245 50 140 Destroy 0b10 Robot/C 300 | . 160 40 100 Destroy 0b10 Robot/NC 5 | . 5 . . Destroy Leader 62 | . 42 10 10 Successful Hack 6 | . 6 . . Disable Machine 15 | . 15 . . Destroy Structure 2 | . 2 . . Lose Combat Pursuer 45 | . 15 . 30 Influence Decreases 400 | . 180 110 110 Entered New Map 44 | . . 40 4 Time Decay 276 | . 150 50 76 Lost Part 80 | . 30 20 30 Squads Dispatched 3 | . 2 . 1 Investigation 1 | . 1 . . Extermination . | . . . . Reinforcement 2 | . 1 . 1 Assault . | . . . . Garrison . | . . . . Intercept . | . . . . Searches Triggered . | . . . . Construction Impeded . | . . . . Haulers Reinforced . | . . . . Active Scanning Responses . | . . . . Cargo Convoy Interrupts . | . . . . Stealth | -11 -10 -10 -9 --------- Run | Yrd Mat Min Mat Distress Signals 2 | . . . 2 Communications Jammed . | . . . . Distress Signals . | . . . . Times Spotted 27 | . 10 2 15 Peak Tracking Total 9 | . 3 2 9 Tactical Retreats 3 | . 1 . 2 Traps | -11 -10 -10 -9 ------- Run | Yrd Mat Min Mat Traps Triggered 2 | . 2 . . Indirectly . | . . . . Trap Hack Attempts . | . . . . Triggered . | . . . . Disarmed . | . . . . Reprogrammed . | . . . . Reused . | . . . . Traps Extracted . | . . . . Installed . | . . . . Triggered . | . . . . Machines | -11 -10 -10 -9 ---------- Run | Yrd Mat Min Mat Machines Disabled 1 | . 1 . . Max in Single Turn 1 | . 1 . . Machines Repaired . | . . . . Machines Dismantled . | . . . . Machines Sabotaged . | . . . . Overloaded Fab Kills . | . . . . Hacking | -11 -10 -10 -9 --------- Run | Yrd Mat Min Mat Machines Accessed 2 | . 2 . . Terminals 2 | . 2 . . Fabricators . | . . . . Repair Stations . | . . . . Recycling Units . | . . . . Scanalyzers . | . . . . Garrison Access . | . . . . Total Hacks 5 | . 5 . . Successful 1 | . 1 . . Failed 4 | . 4 . . Catastrophic 2 | . 2 . . Database Lockouts . | . . . . Manual 5 | . 5 . . Terminals 5 | . 5 . . Fabricators . | . . . . Repair Stations . | . . . . Recycling Units . | . . . . Scanalyzers . | . . . . Garrison Access . | . . . . Terminal Hacks 1 | . 1 . . Robot Analysis 1 | . 1 . . Fabricator Hacks . | . . . . Repair Station Hacks . | . . . . Recycling Unit Hacks . | . . . . Scanalyzer . | . . . . Garrison Access Hacks . | . . . . Unauthorized Hacks . | . . . . Terminals . | . . . . Fabricators . | . . . . Repair Stations . | . . . . Recycling Units . | . . . . Scanalyzers . | . . . . Garrison Access . | . . . . Data Cores Recovered . | . . . . Used . | . . . . Hacking Detections 2 | . 2 . . Full Trace Events 2 | . 2 . . Feedback Events . | . . . . Feedback Blocked . | . . . . Robot Schematics Acquired . | . . . . Robots Built . | . . . . Authchips . | . . . . Time . | . . . . Total Robot Build Rating . | . . . . Part Schematics Acquired . | . . . . Parts Built . | . . . . Authchips . | . . . . Time . | . . . . Total Part Build Rating . | . . . . Parts Repaired . | . . . . Time . | . . . . Parts Recycled . | . . . . Recycled Matter . | . . . . Retrieved Matter . | . . . . Retrieved Components . | . . . . Parts Scanalyzed . | . . . . Part Schematics Acquired . | . . . . Parts Damaged . | . . . . Bothacking | -11 -10 -10 -9 ------------ Run | Yrd Mat Min Mat Used RIF Installer . | . . . . Robots Hacked . | . . . . Non-combat . | . . . . Combat . | . . . . Robot Hacks Applied . | . . . . Relay Couplers Released . | . . . . Fabnet Peak Effective % . | . . . . Robots Rewired . | . . . . Allies Hacked . | . . . . Hacks Repelled . | . . . . Allies | -11 -10 -10 -9 -------- Run | Yrd Mat Min Mat Total Allies . | . . . . Largest Group . | . . . . Highest-Rated Group . | . . . . Highest-Rated Ally . | . . . . Total Orders . | . . . . Ally Attacks . | . . . . Total Damage . | . . . . Kills . | . . . . Allies Corrupted . | . . . . Allies Melted . | . . . . Intel | -11 -10 -10 -9 ------- Run | Yrd Mat Min Mat Active Infowar (turns) . | . . . . Robot Analysis Total 1 | . 1 . . Derelict Logs Recovered . | . . . . Drone Launches . | . . . . Drone Recoveries . | . . . . Exploration | -11 -10 -10 -9 ------------- Run | Yrd Mat Min Mat Turns Passed 740 | 26 391 113 210 Spaces Moved 420 | 32 207 71 110 Core 38 | 32 6 . . Treads . | . . . . Legs 382 | . 201 71 110 Wheels . | . . . . Hover . | . . . . Flight . | . . . . Fastest Speed 50 | 50 50 120 120 Average Speed 117 | 50 125 120 120 Slowest Speed 190 | 50 190 120 120 Overloaded Moves . | . . . . Propulsion Burnouts . | . . . . Robots Hopped . | . . . . Potential Cave-ins . | . . . . Cave-ins Triggered . | . . . . Exploration Rate (%) 21 | 3 37 27 17 Regions Visited 3 Branch Regions 1 Pre-discovered Areas . | . . . . Known Exits Taken . | . . . . Unknown Exits Taken 3 | 1 1 1 . Scrap Searched 1 | . . 1 . Spaces Dug . | . . . . Terrain Destroyed . | . . . . Melee . | . . . . Projectile . | . . . . AOE . | . . . . Terrain Rammed . | . . . . Walls Destroyed . | . . . . Machines Disabled . | . . . . Actions | -11 -10 -10 -9 --------- Run | Yrd Mat Min Mat Total 557 | 39 272 85 161 Wait 37 | . 13 . 24 Move 417 | 31 206 70 110 Hop . | . . . . Pick Up 20 | 5 10 2 3 Fast Attach 3 | 3 . . . Attach 11 | . 7 1 3 Detach . | . . . . Swap 4 | . 1 1 2 Drop 4 | . 1 1 2 Fire 61 | . 34 10 17 Melee . | . . . . Ram . | . . . . Kick . | . . . . Crush . | . . . . Escape Stasis . | . . . . Rewire . | . . . . Trap . | . . . . Miscellaneous . | . . . . Route ------- -11/Scrapyard -10/Materials -10/Mines -9/Materials History --------- Turn | Location | Event 7 | -11/Scrapyard | Discovered new exit (range 15) 27 | -11/Scrapyard | Entered Materials 286 | -10/Materials | Discovered new exit (range 16) 333 | -10/Materials | Build established: Mutant 371 | -10/Materials | Core integrity fell below 50% 418 | -10/Materials | Entered Mines 519 | -10/Mines | Discovered new exit (range 9) 531 | -10/Mines | Entered Materials 531 | -9/Materials | Evolved 2 slots: Propulsion x1, Utility x1 741 | -9/Materials | Self-destructed Last Messages --------------- 00657_ U-05 Engineer works on Hadron Collector. 00675_ K-01 Serf collects debris. 00680_ K-01 Serf cleans the Nuclear Reactor. 00683_ U-05 Engineer works on Hadron Collector. 00701_ K-01 Serf cleans the Material Processor. 00704_ G-34 Mercenary destroyed. 00705_ K-01 Serf cleans the Material Processor. 00710_ Ion Engine melted. 00710_ G-34 Mercenary destroyed. 00711_ K-01 Serf collects debris. 00713_ G-34 Mercenary destroyed. 00714_ K-01 Serf collects debris. 00719_ K-01 Serf cleans the Material Processor. 00719_ Sml. Laser destroyed. 00721_ K-01 Serf collects debris. 00721_ Sml. Laser destroyed. 00723_ Lgt. Ion Engine destroyed. 00724_ K-01 Serf collects debris. 00731_ Material Processor disabled. 00733_ K-01 Serf collects debris. Map ----- +----------------------------------------------------+ | ?????????????????????????????????????????????? | | ?????????????????????????????????????????????? | | ?????????????????????????????????????????????? | | ?????????????????????????????????????????????? | | ?????????????????????????????????????????????? | | ?????????????????????????????????????????????? | | ?????????????????????????????????????????????? | | ?????????????????????????????????????????????? | | ?????????????????????????????????????????????? | | ?????????????????????????????????????????????? | | ?????????????????????????????????????????????? | | ?????????????????????????????????????????????? | | ?????????????????????????????????????????????? | | ?????????????????????????????????????????????? | | ?????????????????????????????????????????????? | | ?????????????????????????????????????????????? | | ?????????????????????????????????????????????? | | ?????????????????????????????????????????????? | | ?????????????????????????????????????????????? | | ?????????????????????????????????????????????? | | ?????????????????????????????????????????????? | | ??????????#####??????????????????????????????? | | ??????????# ##########/##### #???????? | | ???????????? """ / kkss +??????? | | ???????????# "R" #### ######?????????????? | | ???????????# ??????###+##@###????????????????? | | ???????????# ??? ?# #????????????????? | | ???????????# ??? ## g #????????????????? | | ???????????# """ ## """ #????????????????? | | ???????????# """ ## """"" #????????????????? | | ???????????# ## Y """"*#????????????????? | | ???????????# """ ##kY"""""%#????????????????? | | ???????????# """ ## """ =#????????????????? | | ???????????# """ ## %! #????????????????? | | ?? ?####### ## % #????????????????? | | ###+## ##+##########+#######?????????????? | | == #?????????????? | | #?????????????? | | #?????????????? | | #?????????????? | | ####### #?????????????? | | #?????# #?????????????? | | #############+### #?????????????? | | " "" # #??????? #?????????????? | | "" # #???????? #?????????????? | | "" " " # #???????? ????????????? | | # = #????????? ????????????? | | + #????????? #???????????? | | # #?????????? ????????????? | | # #????????????????????????? | +----------------------------------------------------+ Best States ------------- Heat Dissipation 28 Energy Generation 10 Energy Capacity 125 Matter Stores 300 Matter Capacity 300 Sight Range 16 Terrain Scan Density 10 Propulsion Shielding 33 Evasion (%) 55 Targeting Accuracy 5 Item Schematics ----------------- None Robot Schematics ------------------ None Fabricated ------------ Nothing Repaired ---------- Nothing Alien Tech Used ----------------- None Achievements -------------- None Challenges ------------ None Game ------ Seed HypercooledPhaseSlayer Manual? 0 Play Time 00:07:25 Cumulative 159.3 hours Start 2025.05.28 @ 19:40:04 End 2025.05.28 @ 19:48:26 Sessions 1 Manual Loads 0 Difficulty Rogue Special Mode None Game No. 239 Rogue 236 Adventurer 3 Explorer 0 Win Type - Total 1 Types 1/0/0/0/0/0/0/0/0/0 Lore% 49 Gallery% 56 Achievement% 45 Wizard Run 0 Options --------- Layout 0 ASCII 0 Keyboard 0 Movement Mouse Keybinds 0 Fullscreen 2 Font 18/SmallcapsGlow Map View 76x50 Zoom Use 0% Tactical HUD 1 Map Filters NONE Filters NONE Steam 1 RUN: 1bf6e0b3-c44e-47c9-86e9-eade52171f00